bitfinex/quotes_BTCUSD_20250316
["timestamp","ask_amount","ask_price","bid_price","bid_amount"]
[1742091499352,5.00046344,84038.0,84037.0,0.1459683]
[1742091500596,5.00046344,84038.0,84037.0,0.1419683]
[1742091500927,5.00046344,84038.0,84037.0,0.1429683]
[1742091501073,5.00046344,84038.0,84037.0,0.1469683]
[1742091501274,5.00046344,84038.0,84037.0,0.1429683]
[1742091501506,5.23845044,84038.0,84037.0,0.0041693]
[1742091501691,5.25034944,84038.0,84037.0,0.0091693]
[1742091502383,5.25034944,84038.0,84037.0,0.0001693]
[1742091502563,5.56250278,84038.0,84037.0,0.0001693]
[1742091502767,5.56250278,84038.0,84037.0,0.0031693]
[1742091503590,5.56250278,84038.0,84037.0,0.0071693]
[1742091504277,5.56250278,84038.0,84037.0,0.0031693]
[1742091504878,5.57704363,84038.0,84037.0,0.0001693]
[1742091505081,5.57704363,84038.0,84037.0,0.0011693]
[1742091505564,5.57704363,84038.0,84037.0,0.0001693]
[1742091505773,5.57804363,84038.0,84037.0,0.0001693]
[1742091508346,5.69761866,84038.0,84037.0,0.0001693]
[1742091509389,5.57804363,84038.0,84037.0,0.0001693]
[1742091512849,5.99573052,84038.0,84037.0,0.0001693]
[1742091515494,5.98118967,84038.0,84037.0,0.0001693]
[1742091557339,6.60260667,84038.0,84037.0,0.0001693]
[1742091557539,6.48280167,84038.0,84037.0,0.0001693]
[1742091559808,0.549957,84014.0,84001.0,0.24126993]
[1742091560008,0.249993,84002.0,84001.0,0.24126993]
[1742091560209,0.249993,84002.0,84001.0,0.24620129]
[1742091560418,0.249993,84002.0,84001.0,0.37410129]
[1742091561375,0.249993,84002.0,84001.0,0.37710129]
[1742091561546,0.249993,84002.0,84001.0,0.24262129]
[1742091561979,0.249993,84002.0,84001.0,0.13583136]
[1742091562290,0.26217281,84002.0,84001.0,0.1349]
[1742091562910,0.249993,84002.0,84001.0,0.1349]
[1742091563719,0.01216331,84002.0,84001.0,0.1349]
[1742091564098,0.238082,84005.0,84001.0,0.37748041]
[1742091564666,0.24974787,84005.0,84001.0,0.13938941]
[1742091564860,0.238082,84005.0,84001.0,0.13538941]
[1742091565068,0.238082,84005.0,84001.0,0.13238941]
[1742091565261,0.238082,84005.0,84001.0,0.13738941]
[1742091565765,0.3,84008.0,84004.0,0.238081]
[1742091565997,0.3,84008.0,84003.0,0.011904]
[1742091566277,0.3,84008.0,84004.0,0.01683844]
[1742091566477,0.3,84008.0,84005.0,0.23808]
[1742091566679,0.3,84008.0,84006.0,0.0044837]
[1742091566885,0.3,84009.0,84006.0,0.0044837]
[1742091568415,0.3,84009.0,84006.0,0.0054837]
[1742091568953,0.3,84009.0,84006.0,0.0074837]
[1742091569503,0.3117974,84010.0,84007.0,0.0751]
[1742091569772,0.3117974,84010.0,84008.0,0.00492969]
[1742091570710,0.0117974,84010.0,84008.0,0.00492969]
[1742091570909,0.3,84011.0,84008.0,0.00492969]
[1742091571126,0.011903,84009.0,84008.0,0.00592969]
[1742091571829,0.011903,84009.0,84008.0,0.00492969]
[1742091572252,0.011903,84009.0,84008.0,0.00592969]
[1742091572431,0.011903,84009.0,84008.0,0.00492969]
[1742091572637,0.011903,84009.0,84008.0,0.00592969]
[1742091573010,0.011903,84009.0,84008.0,0.00792969]
[1742091575689,0.549966,84012.0,84008.0,0.00792969]
[1742091575893,0.238068,84010.0,84008.0,0.00792969]
[1742091576408,0.011903,84010.0,84008.0,0.00792969]
[1742091577170,0.249969,84011.0,84008.0,0.00592969]
[1742091577373,0.249969,84011.0,84008.0,0.00492969]
[1742091577573,0.249969,84011.0,84008.0,0.00592969]
[1742091577774,0.249969,84011.0,84008.0,0.00692969]
[1742091578030,0.249969,84011.0,84008.0,0.00492969]
[1742091578232,0.23805,84016.0,84008.0,0.00492969]
[1742091578233,0.3,84015.0,84010.0,0.011903]
[1742091578432,0.3,84015.0,84014.0,0.1224]
[1742091578836,0.3,84015.0,84014.0,0.12687507]
[1742091579184,0.3,84017.0,84014.0,0.12687507]
[1742091580667,0.3,84015.0,84014.0,0.12887507]
[1742091581143,0.3,84015.0,84014.0,0.12687507]
[1742091581344,0.3,84015.0,84014.0,0.12787507]
[1742091581841,0.3,84015.0,84014.0,0.12687507]
[1742091582058,0.3,84015.0,84014.0,0.12787507]
[1742091582246,0.3,84015.0,84014.0,0.12987507]
[1742091582452,0.3,84015.0,84014.0,0.12887507]
[1742091582646,0.311902,84017.0,84014.0,0.12987507]
[1742091583600,0.311902,84018.0,84014.0,0.12987507]
[1742091583786,0.3,84018.0,84014.0,0.36592807]
[1742091583997,0.31213526,84018.0,84014.0,0.36692807]
[1742091584132,0.31213526,84018.0,84014.0,0.36592807]
[1742091584644,0.31213526,84018.0,84016.0,0.238049]
[1742091584826,0.01213526,84018.0,84016.0,0.238049]
[1742091585068,0.311901,84020.0,84016.0,0.238049]
[1742091585069,0.311901,84020.0,84017.0,0.00491776]
[1742091585256,0.311901,84020.0,84018.0,0.249946]
[1742091585257,0.3,84020.0,84018.0,0.249946]
[1742091585472,0.3,84020.0,84019.0,0.0791]
[1742091585662,0.3,84020.0,84019.0,0.08401369]
[1742091585898,0.01182321,84026.0,84019.0,0.33395369]
[1742091586049,0.01182321,84026.0,84020.0,0.011901]
[1742091586249,0.549915,84029.0,84021.0,0.00446483]
[1742091586454,0.549915,84029.0,84023.0,0.238027]
[1742091586834,0.549915,84029.0,84024.0,0.00490745]
[1742091587622,0.549915,84029.0,84024.0,0.24293245]
[1742091587957,0.549915,84029.0,84026.0,0.238021]
[1742091587958,0.0120719,84029.0,84026.0,0.238021]
[1742091588287,0.66757989,84036.0,84030.0,0.315109]
[1742091588431,0.66770453,84036.0,84030.0,0.315109]
[1742091588835,0.3,84035.0,84030.0,0.315109]
[1742091589037,0.549897,84035.0,84030.0,0.0771]
[1742091589236,0.0119,84031.0,84030.0,0.0771]
[1742091589670,0.0119,84031.0,84030.0,0.08199965]
[1742091589878,0.549907,84031.0,84030.0,0.08099965]
[1742091590495,0.3,84031.0,84030.0,0.08099965]
[1742091591419,0.3,84031.0,84030.0,0.08299965]
[1742091591717,0.01192843,84035.0,84034.0,0.237998]
[1742091591920,0.31192843,84035.0,84034.0,0.237998]
[1742091592218,0.3,84035.0,84034.0,0.237998]
[1742091592431,0.00012464,84036.0,84035.0,0.011899]
[1742091592743,0.00012464,84036.0,84035.0,0.060599]
[1742091592948,0.00012464,84036.0,84035.0,0.15423985]
[1742091593393,0.00012464,84036.0,84035.0,0.1554297]
[1742091593768,0.00012464,84036.0,84035.0,0.139699]
[1742091593964,0.00012464,84036.0,84035.0,0.14088883]
[1742091594175,0.00012464,84036.0,84035.0,0.15423985]
[1742091594632,0.00012464,84036.0,84035.0,0.15623985]
[1742091594817,0.00012464,84036.0,84035.0,0.29067985]
[1742091594973,0.00012464,84036.0,84035.0,0.29267985]
[1742091595179,0.00012464,84036.0,84035.0,0.2975658]
[1742091602290,0.00012464,84036.0,84035.0,0.2935658]
[1742091602502,0.00012464,84036.0,84035.0,0.3045658]
[1742091604874,6.4e-07,84036.0,84035.0,0.6595658]
[1742091605061,3.33267111,84038.0,84037.0,0.50273985]
[1742091605260,2.25314211,84038.0,84037.0,0.50273985]
[1742091605507,2.25314211,84038.0,84037.0,0.50761607]
[1742091606247,2.25314211,84038.0,84037.0,1.20761607]
[1742091608040,2.25314211,84038.0,84037.0,0.86461607]
[1742091608243,2.25314211,84038.0,84037.0,0.97257622]
[1742091608616,2.25314211,84038.0,84037.0,0.98711707]
[1742091609020,2.25314211,84038.0,84037.0,0.97257622]
[1742091609230,2.25314211,84038.0,84037.0,0.27257622]
[1742091609565,2.25314211,84038.0,84037.0,0.01687622]
[1742091609846,2.25314211,84038.0,84037.0,0.15127622]
[1742091610076,2.25314211,84038.0,84037.0,0.1464]
[1742091610597,2.25314211,84038.0,84037.0,0.1404]
[1742091611298,2.26504111,84038.0,84037.0,0.011]
[1742091611494,2.26504111,84038.0,84037.0,0.005]
[1742091611860,2.26504111,84038.0,84037.0,0.011]
[1742091612233,2.26504111,84038.0,84037.0,0.006]
[1742091612403,2.26504111,84038.0,84037.0,0.009]
[1742091612602,2.26504111,84038.0,84037.0,0.006]
[1742091613043,2.26504111,84038.0,84037.0,0.009]
[1742091613266,2.26504111,84038.0,84037.0,0.003]
[1742091613589,2.26504111,84038.0,84037.0,0.007]
[1742091614088,2.26504111,84038.0,84037.0,0.003]
[1742091614315,2.26537971,84038.0,84037.0,0.003]
[1742091614885,2.56537971,84038.0,84037.0,0.003]
[1742091615087,2.56537971,84038.0,84037.0,0.007]
[1742091615715,2.55348071,84038.0,84037.0,0.007]
[1742091616080,2.25348071,84038.0,84037.0,0.007]
[1742091616291,2.25348071,84038.0,84037.0,0.004]
[1742091616536,2.25348071,84038.0,84032.0,0.249904]
[1742091616736,2.25348071,84038.0,84033.0,0.0119]
[1742091617142,2.25348071,84038.0,84034.0,0.00488672]
[1742091617868,2.25348071,84038.0,84037.0,0.005]
[1742091618270,2.25348071,84038.0,84034.0,0.004]
[1742091618596,2.25348071,84038.0,84035.0,0.00488553]
[1742091619568,2.25348071,84038.0,84034.0,0.005]
[1742091620024,2.25348071,84038.0,84032.0,0.0452]
[1742091620205,2.25348071,84038.0,84035.0,0.00488553]
[1742091620437,2.25348071,84038.0,84035.0,0.005]
[1742091620653,2.25348071,84038.0,84036.0,0.00488435]
[1742091621768,2.25348071,84038.0,84035.0,0.004]
[1742091621970,2.25348071,84038.0,84036.0,0.00488435]
[1742091622342,2.25348071,84038.0,84036.0,0.004]
[1742091622691,2.25348071,84038.0,84037.0,0.00488316]
[1742091623115,2.25348071,84038.0,84035.0,0.241994]
[1742091623288,2.25348071,84038.0,84037.0,0.00488316]
[1742091623524,2.25348071,84038.0,84036.0,0.24287435]
[1742091623701,2.25348071,84038.0,84037.0,0.00488316]
[1742091624037,2.25348071,84038.0,84036.0,0.24199]
[1742091624241,2.25348071,84038.0,84037.0,0.02178216]
[1742091625068,2.25348071,84038.0,84037.0,0.01678216]
[1742091625220,2.25348071,84038.0,84037.0,0.02078216]
[1742091626854,2.25348071,84038.0,84037.0,0.02578216]
[1742091628082,2.25348071,84038.0,84037.0,0.11752301]
[1742091628201,2.25348071,84038.0,84037.0,0.16602301]
[1742091628718,2.25348071,84038.0,84037.0,0.49028482]
[1742091629487,2.25348071,84038.0,84037.0,0.48128482]
[1742091629696,2.25348071,84038.0,84037.0,0.49028482]
[1742091629896,2.25348071,84038.0,84037.0,0.54128482]
[1742091630349,2.25348071,84038.0,84037.0,0.53628482]
[1742091630740,2.25348071,84038.0,84037.0,0.54228482]
[1742091631095,2.25348071,84038.0,84037.0,0.53628482]
[1742091631507,2.25348071,84038.0,84037.0,1.24228482]
[1742091631912,2.25348071,84038.0,84037.0,1.24828482]
[1742091632263,2.25348071,84038.0,84037.0,1.24228482]
[1742091632517,2.25348071,84038.0,84037.0,1.19328482]
[1742091633128,2.25348071,84038.0,84037.0,0.16684497]
[1742091633332,2.25348071,84038.0,84037.0,0.15128316]
[1742091633536,2.25348071,84038.0,84037.0,0.1404]
[1742091634309,2.25348071,84038.0,84037.0,0.1344]
[1742091634717,2.25348071,84038.0,84037.0,0.1404]
[1742091634918,2.25348071,84038.0,84037.0,0.14544394]
[1742091635132,2.50336671,84038.0,84037.0,0.14036]
[1742091635397,2.50336671,84038.0,84037.0,0.14636]
[1742091636334,2.50336671,84038.0,84037.0,0.13436]
[1742091636524,2.50336671,84038.0,84037.0,0.14036]
[1742091636926,2.50336671,84038.0,84037.0,0.14636]
[1742091637327,2.50336671,84038.0,84037.0,0.14036]
[1742091637752,2.50336671,84038.0,84037.0,0.14636]
[1742091639214,2.50336671,84038.0,84037.0,0.012]
[1742091640006,2.58236671,84038.0,84037.0,0.012]
[1742091640213,2.58236671,84038.0,84037.0,0.0121693]
[1742091640413,2.89443562,84038.0,84037.0,0.0001693]
[1742091640812,2.89443562,84038.0,84037.0,0.0061693]
[1742091641440,2.94133562,84038.0,84037.0,0.0061693]
[1742091641591,2.94133562,84038.0,84037.0,0.0121693]
[1742091642057,3.80722062,84038.0,84037.0,0.0061693]
[1742091642264,3.92679565,84038.0,84037.0,0.0061693]
[1742091642475,3.92679565,84038.0,84009.0,0.1342682]
[1742091642476,0.249969,84010.0,84009.0,0.1342682]
[1742091642603,0.249969,84010.0,84009.0,0.13439284]
[1742091642817,0.249969,84010.0,84009.0,0.13941878]
[1742091643014,0.549969,84010.0,84009.0,0.00515058]
[1742091643465,0.549969,84010.0,84009.0,0.00012464]
[1742091644075,0.549969,84010.0,84009.0,0.00512464]
[1742091644478,0.549969,84010.0,84009.0,0.00012464]
[1742091644740,0.549969,84010.0,84009.0,0.00212464]
[1742091645212,0.549969,84010.0,84009.0,0.00612464]
[1742091645407,0.549969,84010.0,84009.0,0.00212464]
[1742091645817,0.549969,84010.0,84009.0,0.00412464]
[1742091646022,0.549969,84010.0,84009.0,0.00212464]
[1742091646809,0.549969,84010.0,84009.0,0.00312464]
[1742091652031,0.549969,84010.0,84009.0,0.00329394]
[1742091663303,0.6286076,84010.0,84009.0,0.00329394]
[1742091663468,0.6286076,84010.0,84009.0,0.00029394]
[1742091664373,0.6296076,84010.0,84009.0,0.00029394]
[1742091665807,0.6286076,84010.0,84009.0,0.00029394]
[1742091666003,0.6296076,84010.0,84009.0,0.00029394]
[1742091666334,0.6306076,84010.0,84009.0,0.00029394]
[1742091666547,0.6296076,84010.0,84009.0,0.00029394]
[1742091666911,0.6316076,84010.0,84009.0,0.00029394]
[1742091674022,0.5533076,84010.0,84009.0,0.00029394]
[1742091674820,0.5513076,84010.0,84009.0,0.00029394]
[1742091675044,0.5503076,84010.0,84009.0,0.00029394]
[1742091675244,0.0013386,84010.0,84009.0,0.00029394]
[1742091675443,0.0132416,84010.0,84009.0,0.00029394]
[1742091675660,0.3122416,84010.0,84009.0,0.00029394]
[1742091676062,0.3132416,84010.0,84009.0,0.00506619]
[1742091676262,0.3132416,84010.0,84009.0,0.00129394]
[1742091676464,0.3122416,84010.0,84009.0,0.00606619]
[1742091676710,0.3122416,84010.0,84009.0,0.00029394]
[1742091676911,0.3122416,84010.0,84009.0,0.00706619]
[1742091677126,0.3122416,84010.0,84009.0,0.00229394]
[1742091677303,0.3122416,84010.0,84009.0,0.00706619]
[1742091678655,0.3122416,84010.0,84009.0,0.00229394]
[1742091680125,0.3122416,84010.0,84009.0,0.00706619]
[1742091680325,0.3003386,84010.0,84009.0,0.00229394]
[1742091680701,0.3122416,84010.0,84009.0,0.00706619]
[1742091680921,0.3122416,84010.0,84009.0,0.00229394]
[1742091681087,0.3122416,84010.0,84009.0,0.00706619]
[1742091681289,0.3122416,84010.0,84009.0,0.00229394]
[1742091681489,0.3122416,84010.0,84009.0,0.00706619]
[1742091681778,0.3122416,84010.0,84009.0,0.00229394]
[1742091683838,0.3122416,84010.0,84009.0,0.00706619]
[1742091684115,0.3122416,84010.0,84009.0,0.00229394]
[1742091684271,0.3122416,84010.0,84009.0,0.00706619]
[1742091684468,0.3122416,84010.0,84009.0,0.00229394]
[1742091684688,0.3122416,84010.0,84009.0,0.00706619]
[1742091684872,0.3122416,84010.0,84009.0,0.00229394]
[1742091685079,0.3122416,84010.0,84009.0,0.00706619]
[1742091685287,0.3122416,84010.0,84009.0,0.00229394]
[1742091691170,0.0003386,84010.0,84009.0,0.08746443]
[1742091691376,0.0003386,84010.0,84009.0,0.37163343]
[1742091692605,0.0003386,84010.0,84009.0,0.37063343]
[1742091692810,0.0003386,84010.0,84009.0,0.37263343]
[1742091693142,0.0003386,84010.0,84009.0,0.37563343]
[1742091693342,0.01900075,84010.0,84009.0,0.37563343]
[1742091693584,0.01900075,84010.0,84009.0,0.38753643]
[1742091694452,0.01900075,84010.0,84009.0,0.38453643]
[1742091694680,0.01900075,84010.0,84009.0,0.38853643]
[1742091695322,0.01900075,84010.0,84009.0,0.38453643]
[1742091695594,0.01900075,84010.0,84009.0,0.39053643]
[1742091695836,0.01900075,84010.0,84009.0,0.38753643]
[1742091696086,0.01900075,84010.0,84009.0,0.39642342]
[1742091696308,0.01900075,84010.0,84009.0,0.40142342]
[1742091696541,0.01900075,84010.0,84009.0,0.39642342]
[1742091697158,0.01900075,84010.0,84009.0,0.39042342]
[1742091698118,0.01900075,84010.0,84009.0,0.40242342]
[1742091698535,0.01900075,84010.0,84009.0,0.39642342]
[1742091699054,0.01900075,84010.0,84009.0,0.40242342]
[1742091700843,0.01900075,84010.0,84009.0,0.40742342]
[1742091701044,0.0003386,84010.0,84009.0,0.42196427]
[1742091701636,6e-07,84010.0,84009.0,0.42196427]
[1742091702518,6e-07,84010.0,84009.0,1.11596427]
[1742091702736,6e-07,84010.0,84009.0,1.10996427]
[1742091702939,6e-07,84010.0,84009.0,1.11596427]
[1742091703151,6e-07,84010.0,84009.0,1.12196427]
[1742091705353,6e-07,84010.0,84009.0,1.87788427]
[1742091710020,0.01865819,84019.0,84018.0,0.383946]
[1742091710221,0.01865819,84019.0,84018.0,1.22309745]
[1742091711234,0.01865819,84019.0,84018.0,1.23509745]
[1742091712123,2.25348071,84038.0,84037.0,0.249889]
[1742091712344,2.25348071,84038.0,84037.0,0.513289]
[1742091712690,2.25348071,84038.0,84037.0,0.53012841]
[1742091712885,2.25348071,84038.0,84037.0,0.51802399]
[1742091714057,2.25348071,84038.0,84037.0,0.52402399]
[1742091714412,2.25348071,84038.0,84037.0,0.54752011]
[1742091714981,2.25348071,84038.0,84037.0,0.55352011]
[1742091716457,2.25348071,84038.0,84037.0,0.42452011]
[1742091716659,2.25348071,84038.0,84037.0,0.40102399]
[1742091717242,2.25348071,84038.0,84037.0,0.24272499]
[1742091717444,2.25348071,84038.0,84037.0,0.13913499]
[1742091717643,2.49146771,84038.0,84037.0,0.01673499]
[1742091717823,2.50336671,84038.0,84037.0,0.14636]
[1742091718576,2.50336671,84038.0,84037.0,0.14036]
[1742091718782,2.50336671,84038.0,84037.0,0.14536]
[1742091718927,2.26537971,84038.0,84037.0,0.14536]
[1742091719126,2.68897971,84038.0,84037.0,0.005]
[1742091719486,2.70763635,84038.0,84037.0,0.005]
[1742091720109,2.70763635,84038.0,84037.0,0.01]
[1742091720465,2.70763635,84038.0,84037.0,0.005]
[1742091720675,2.70763635,84038.0,84037.0,0.006]
[1742091720921,2.70763635,84038.0,84037.0,0.001]
[1742091721146,0.011902,84017.0,84016.0,0.13436]
[1742091721361,0.249949,84017.0,84016.0,0.13448464]
[1742091721702,0.249949,84017.0,84016.0,0.13923972]
[1742091721877,0.26860851,84017.0,84016.0,0.13923972]
[1742091722031,0.26860851,84017.0,84016.0,0.13448464]
[1742091722662,0.26860851,84017.0,84016.0,0.13923972]
[1742091722865,0.26860851,84017.0,84016.0,0.14323972]
[1742091723471,0.26860851,84017.0,84016.0,0.00887972]
[1742091723663,0.26860851,84017.0,84016.0,0.00812464]
[1742091725362,0.61640851,84017.0,84016.0,0.00812464]
[1742091732752,0.61640851,84017.0,84016.0,0.00829404]
[1742091733733,0.597749,84017.0,84016.0,0.00829404]
[1742091734677,0.597749,84017.0,84016.0,0.00429404]
[1742091734872,0.597749,84017.0,84016.0,0.00029404]
[1742091735175,0.597749,84017.0,84016.0,0.00429404]
[1742091736641,0.64448001,84017.0,84016.0,0.00429404]
[1742091736841,0.71255164,84017.0,84016.0,0.00429404]
[1742091737067,0.71255164,84017.0,84016.0,0.00229404]
[1742091737270,0.71255164,84017.0,84016.0,0.00329404]
[1742091737449,0.71255164,84017.0,84016.0,0.00129404]
[1742091738116,0.71255164,84017.0,84016.0,0.00029404]
[1742091739698,0.65021079,84017.0,84016.0,0.00029404]
[1742091739908,0.33056379,84017.0,84016.0,0.00029404]
[1742091740132,0.31866179,84017.0,84016.0,0.00029404]
[1742091740297,0.33056379,84017.0,84016.0,0.00029404]
[1742091741283,0.33056379,84017.0,84016.0,0.00229404]
[1742091741488,0.33056379,84017.0,84016.0,0.00029404]
[1742091741691,0.33056379,84017.0,84016.0,0.00329404]
[1742091741836,0.33056379,84017.0,84016.0,0.00629404]
[1742091742711,0.41216379,84017.0,84016.0,0.00629404]
[1742091744227,0.45736379,84017.0,84016.0,0.00629404]
[1742091744428,0.47190464,84017.0,84016.0,0.00629404]
[1742091745019,0.47190464,84017.0,84016.0,0.00029404]
[1742091761561,0.34510464,84017.0,84016.0,0.00029404]
[1742091769736,0.33056379,84017.0,84016.0,0.00029404]
[1742091769939,0.311902,84017.0,84016.0,0.07859404]
[1742091770323,0.311902,84017.0,84016.0,0.13105743]
[1742091770866,0.3,84017.0,84016.0,0.13105743]
[1742091771447,0.0003388,84019.0,84018.0,0.328246]
[1742091771648,0.0003388,84019.0,84018.0,0.38070648]
[1742091773123,0.01899663,84019.0,84018.0,0.38070648]
[1742091773595,0.01899663,84019.0,84018.0,0.38670648]
[1742091774177,0.01899663,84019.0,84018.0,0.39270648]
[1742091779275,0.0003388,84019.0,84018.0,0.39270648]
[1742091779442,2.25348071,84038.0,84037.0,0.375589]
[1742091779623,2.25348071,84038.0,84037.0,0.51472617]
[1742091780259,2.25348071,84038.0,84037.0,0.50282717]
[1742091780842,2.25348071,84038.0,84037.0,0.50682717]
[1742091781692,2.25348071,84038.0,84037.0,0.18923717]
[1742091781854,2.26537971,84038.0,84037.0,0.1434]
[1742091782255,2.28403665,84038.0,84037.0,0.1434]
[1742091785906,2.28403665,84038.0,84037.0,0.1384]
[1742091786491,2.28403665,84038.0,84037.0,0.1424]
[1742091789180,2.27213765,84038.0,84037.0,0.1424]
[1742091789708,2.27213765,84038.0,84037.0,0.38039]
[1742091790652,2.27213765,84038.0,84037.0,0.38512694]
[1742091790877,2.27213765,84038.0,84037.0,0.14713694]
[1742091792614,2.27213765,84038.0,84037.0,0.01273694]
[1742091792909,2.27213765,84038.0,84037.0,0.09013694]
[1742091798117,2.27213765,84038.0,84037.0,0.10203594]
[1742091798323,2.25348071,84038.0,84037.0,0.10203594]
[1742091798905,2.25348071,84038.0,84037.0,0.09803594]
[1742091799310,2.25348071,84038.0,84037.0,0.10303594]
[1742091799850,2.25348071,84038.0,84037.0,0.09903594]
[1742091800174,2.25348071,84038.0,84037.0,0.10303594]
[1742091800653,2.25348071,84038.0,84037.0,0.09113694]
[1742091801243,2.27213733,84038.0,84037.0,0.09113694]
[1742091801662,2.27213733,84038.0,84037.0,0.10303594]
[1742091803225,2.27213733,84038.0,84037.0,0.09903594]
[1742091803423,2.27213733,84038.0,84037.0,0.10403594]
[1742091803855,2.27213733,84038.0,84037.0,0.09903594]
[1742091804081,2.27213733,84038.0,84037.0,0.10003594]
[1742091804268,2.27213733,84038.0,84037.0,0.10603594]
[1742091804907,2.27213733,84038.0,84037.0,0.10003594]
[1742091805219,2.27213733,84038.0,84037.0,0.10603594]
[1742091805394,2.27213733,84038.0,84037.0,0.15413594]
[1742091805803,2.27213733,84038.0,84037.0,0.28849594]
[1742091806389,2.27213733,84038.0,84037.0,0.28249594]
[1742091806597,2.27213733,84038.0,84037.0,0.28849594]
[1742091807028,2.27213733,84038.0,84037.0,0.28249594]
[1742091807430,2.27213733,84038.0,84037.0,0.28849594]
[1742091807824,2.27213733,84038.0,84037.0,0.28249594]
[1742091808414,2.27213733,84038.0,84037.0,0.28849594]
[1742091809233,2.25348071,84038.0,84037.0,0.29349594]
[1742091810162,2.25348071,84038.0,84037.0,0.28149594]
[1742091810372,2.25348071,84038.0,84037.0,0.29349594]
[1742091810603,2.25348071,84038.0,84037.0,0.28749594]
[1742091811019,2.25348071,84038.0,84037.0,0.28249594]
[1742091811422,2.25348071,84038.0,84037.0,0.28849594]
[1742091811665,2.25348071,84038.0,84037.0,0.07673594]
[1742091811876,2.25348071,84038.0,84037.0,0.29345594]
[1742091812052,2.25348071,84038.0,84037.0,0.28745594]
[1742091812256,2.27213476,84038.0,84037.0,0.28745594]
[1742091812637,2.27213476,84038.0,84037.0,0.15313594]
[1742091812815,2.27213476,84038.0,84037.0,0.28145594]
[1742091813315,2.27213476,84038.0,84037.0,0.28745594]
[1742091813954,2.27213476,84038.0,84037.0,0.29345594]
[1742091814163,2.27213476,84038.0,84037.0,0.28745594]
[1742091814359,2.27213476,84038.0,84037.0,0.29345594]
[1742091814572,2.27213476,84038.0,84037.0,0.28745594]
[1742091814784,2.27213476,84038.0,84037.0,0.29345594]
[1742091818101,2.27213476,84038.0,84037.0,1.06195594]
[1742091818102,1.25983326,84038.0,84037.0,1.06195594]
[1742091818303,0.72311226,84038.0,84037.0,1.07649679]
[1742091818422,0.6873408,84038.0,84037.0,1.07649679]
[1742091818868,0.65156934,84038.0,84037.0,1.07649679]
[1742091819205,0.61579788,84038.0,84037.0,1.07649679]
[1742091819416,0.61579788,84038.0,84037.0,1.77649679]
[1742091819622,0.39723788,84038.0,84037.0,1.77649679]
[1742091819828,0.39723788,84038.0,84037.0,1.77049679]
[1742091819998,0.39723788,84038.0,84037.0,1.76449679]
[1742091820200,0.39723788,84038.0,84037.0,1.77649679]
[1742091823085,0.36146642,84038.0,84037.0,1.89607182]
[1742091823420,0.32569496,84038.0,84037.0,1.89607182]
[1742091825753,0.32569496,84038.0,84037.0,1.89107182]
[1742091825954,0.32569496,84038.0,84037.0,2.65163182]
[1742091826153,0.32569496,84038.0,84037.0,2.77723182]
[1742091826362,0.32569496,84038.0,84037.0,2.65163182]
[1742091827299,0.32569496,84038.0,84037.0,2.64663182]
[1742091827510,0.32569496,84038.0,84037.0,2.65163182]
[1742091829396,0.32569496,84038.0,84037.0,2.52705679]
[1742091829599,0.32569496,84038.0,84037.0,2.53205679]
[1742091832877,0.32569496,84038.0,84037.0,1.83205679]
[1742091835627,0.32569496,84038.0,84037.0,1.86918759]
[1742091835771,0.32569496,84038.0,84037.0,2.53205679]
[1742091836162,0.08807394,84038.0,84037.0,2.65765679]
[1742091836369,0.08807394,84038.0,84037.0,2.53205679]
[1742091839652,0.08807394,84038.0,84037.0,2.53222609]
[1742091841894,0.08807394,84038.0,84037.0,2.53218609]
[1742091842800,0.08807394,84038.0,84037.0,2.48218609]
[1742091842977,0.08807394,84038.0,84037.0,2.39790609]
[1742091843122,0.08807394,84038.0,84037.0,2.53218609]
[1742091845826,0.08807394,84038.0,84037.0,2.52718609]
[1742091846521,0.08807394,84038.0,84037.0,2.56437666]
[1742091846723,0.08807394,84038.0,84037.0,2.56937666]
[1742091847153,0.08807394,84038.0,84037.0,2.48697666]
[1742091847366,0.08807394,84038.0,84037.0,2.48197666]
[1742091847498,0.08807394,84038.0,84037.0,2.48697666]
[1742091849693,0.08807394,84038.0,84037.0,2.48197666]
[1742091849891,0.08807394,84038.0,84037.0,2.48697666]
[1742091850210,0.08807394,84038.0,84037.0,2.46743581]
[1742091852287,0.08807394,84038.0,84037.0,2.41743581]
[1742091852486,0.08807394,84038.0,84037.0,2.23505581]
[1742091852698,0.08807394,84038.0,84037.0,2.36933581]
[1742091853045,0.08807394,84038.0,84037.0,2.06933581]
[1742091853247,0.08807394,84038.0,84037.0,2.03214524]
[1742091854018,0.08807394,84038.0,84037.0,2.02614524]
[1742091854241,0.08807394,84038.0,84037.0,1.32614524]
[1742091854420,0.08807394,84038.0,84037.0,1.33214524]
[1742091854614,0.08807394,84038.0,84037.0,1.32614524]
[1742091855471,0.08807394,84038.0,84037.0,1.33214524]
[1742091855683,0.08807394,84038.0,84037.0,1.33814524]
[1742091855885,0.08807394,84038.0,84037.0,1.33214524]
[1742091856240,0.08807394,84038.0,84037.0,1.33814524]
[1742091857027,0.08807394,84038.0,84037.0,0.92464524]
[1742091860871,0.08807394,84038.0,84037.0,1.35874524]
[1742091861072,0.08807394,84038.0,84037.0,1.40654524]
[1742091861813,0.08807394,84038.0,84037.0,1.40054524]
[1742091862021,0.08807394,84038.0,84037.0,1.4317215]
[1742091862226,0.08807394,84038.0,84037.0,1.4377215]
[1742091862450,0.08807394,84038.0,84037.0,2.1377215]
[1742091862635,0.08807394,84038.0,84037.0,2.1317215]
[1742091863922,0.08807394,84038.0,84037.0,2.1377215]
[1742091868791,0.08807394,84038.0,84037.0,2.15226235]
[1742091870990,0.08807394,84038.0,84037.0,2.14026235]
[1742091871293,0.08807394,84038.0,84037.0,2.15226235]
[1742091873854,0.08807394,84038.0,84037.0,2.1377215]
[1742091874054,0.08807394,84038.0,84037.0,1.91864524]
[1742091874217,0.08807394,84038.0,84037.0,1.48436524]
[1742091874435,0.08807394,84038.0,84037.0,1.61864524]
[1742091874870,0.08807394,84038.0,84037.0,1.61264524]
[1742091875271,0.08807394,84038.0,84037.0,1.60664524]
[1742091875474,0.08807394,84038.0,84037.0,1.61264524]
[1742091875988,0.08807394,84038.0,84037.0,0.91264524]
[1742091876409,0.08807394,84038.0,84037.0,0.91864524]
[1742091876757,0.08807394,84038.0,84037.0,0.91264524]
[1742091877165,0.08807394,84038.0,84037.0,0.91864524]
[1742091885773,0.08807394,84038.0,84037.0,0.78436524]
[1742091885990,0.08807394,84038.0,84037.0,0.91864524]
[1742091889005,0.08807394,84038.0,84037.0,0.91854021]
[1742091893515,0.08807394,84038.0,84037.0,0.77262427]
[1742091893734,0.16707394,84038.0,84037.0,0.77262427]
[1742091893943,0.16707394,84038.0,84037.0,0.90690427]
[1742091894970,0.16707394,84038.0,84037.0,0.90090427]
[1742091895177,0.16707394,84038.0,84037.0,0.90690427]